bitfinex/quotes_ETHUSD_20250822
["timestamp","ask_amount","ask_price","bid_price","bid_amount"]
[1755864429856,39.65823464,4266.9,4265.9,0.004]
[1755864430045,42.56930292,4266.9,4265.9,0.004]
[1755864430242,43.4306651,4266.9,4265.9,0.004]
[1755864430643,39.2546651,4266.9,4265.9,0.004]
[1755864430857,5.73798109,4266.9,4265.9,0.004]
[1755864431058,4.14662183,4266.9,4265.9,0.004]
[1755864431262,9.08192183,4266.9,4265.9,0.004]
[1755864431438,12.50168401,4266.9,4265.9,0.004]
[1755864431769,12.86854077,4266.9,4265.9,0.004]
[1755864431935,10.25443737,4266.9,4265.9,0.004]
[1755864432264,13.98783737,4266.9,4265.9,0.004]
[1755864432459,13.57607519,4266.9,4265.9,0.004]
[1755864432655,14.02567519,4266.9,4265.9,0.004]
[1755864433059,13.26237519,4266.9,4265.9,0.004]
[1755864433259,13.26137519,4266.9,4265.9,0.004]
[1755864433649,9.08137519,4266.9,4265.9,0.004]
[1755864434069,13.57207519,4266.9,4265.9,0.004]
[1755864434268,14.02167519,4266.9,4265.9,0.004]
[1755864434472,13.56927519,4266.9,4265.9,0.004]
[1755864434873,9.39227519,4266.9,4265.9,0.004]
[1755864435070,13.56927519,4266.9,4265.9,0.004]
[1755864435240,13.56827519,4266.9,4265.9,0.004]
[1755864435441,14.01787519,4266.9,4265.9,0.004]
[1755864435870,6.73695336,4266.9,4265.9,0.004]
[1755864436144,11.68667859,4266.9,4266.0,0.4469]
[1755864436344,12.44797859,4266.9,4265.9,0.004]
[1755864436751,42.44797859,4266.9,4265.9,0.004]
[1755864437284,42.45097859,4266.9,4265.9,0.004]
[1755864438256,57.02753732,4266.9,4265.9,0.004]
[1755864438463,59.88633695,4266.9,4265.9,0.004]
[1755864439089,60.76194234,4266.9,4265.9,0.004]
[1755864439812,30.89132321,4266.9,4265.9,0.004]
[1755864440111,61.10696012,4266.9,4265.9,0.004]
[1755864440289,62.20968829,4266.9,4265.9,0.004]
[1755864440490,58.03268829,4266.9,4265.9,0.004]
[1755864440707,62.20368829,4266.9,4265.9,0.004]
[1755864441329,2.34373168,4266.7,4265.9,0.004]
[1755864441512,5.34389284,4266.5,4265.9,0.004]
[1755864441716,7.38560539,4266.4,4265.9,0.004]
[1755864442023,3.0,4266.3,4265.9,0.004]
[1755864442229,3.0,4266.7,4266.2,0.308]
[1755864442428,0.21570352,4266.6,4266.2,0.308]
[1755864442629,2.34395143,4266.3,4266.2,0.7144]
[1755864442969,4.14586782,4266.9,4266.2,0.7144]
[1755864442970,0.83346804,4267.9,4266.2,0.2675]
[1755864443082,2.3429066,4268.3,4266.2,0.2675]
[1755864443083,0.36684944,4266.9,4266.4,2.34389649]
[1755864443287,0.36684944,4266.9,4266.8,0.308]
[1755864443591,4.54884944,4266.9,4266.8,0.7549]
[1755864443792,5.00373438,4266.9,4266.8,0.308]
[1755864443992,35.21951365,4266.9,4266.1,0.004]
[1755864444207,30.21577927,4266.8,4266.1,0.004]
[1755864444423,2.34388508,4266.5,4266.1,0.004]
[1755864444590,1.803,4266.4,4266.1,0.004]
[1755864444792,5.988,4266.4,4266.1,0.004]
[1755864444995,2.34400637,4266.2,4266.1,0.004]
[1755864445299,4.39990178,4266.2,4266.1,0.004]
[1755864445490,6.52800637,4266.2,4266.1,0.004]
[1755864445839,6.74291956,4266.2,4266.1,0.004]
[1755864446127,40.55199565,4266.2,4266.1,0.004]
[1755864446334,43.49333499,4266.2,4266.1,0.004]
[1755864446820,3.00411626,4266.0,4265.8,0.02]
[1755864446996,42.59096227,4265.9,4265.8,0.02]
[1755864447197,2.34472086,4264.9,4263.5,0.4469]
[1755864447396,42.35886579,4264.9,4263.5,0.4469]
[1755864447709,45.96019905,4264.9,4263.1,0.4469]
[1755864447891,41.77519905,4264.9,4263.1,0.4469]
[1755864448088,46.17517594,4264.9,4263.1,0.4469]
[1755864448299,3.66,4264.8,4262.1,0.4469]
[1755864448499,3.66,4264.8,4262.7,0.4469]
[1755864448500,0.66,4264.5,4262.7,0.4469]
[1755864448695,2.34527076,4263.9,4262.7,0.4469]
[1755864448922,2.34527076,4263.9,4263.1,0.4469]
[1755864448923,5.01999617,4263.9,4263.1,0.4469]
[1755864449086,9.70144493,4263.9,4263.1,0.4469]
[1755864449287,11.54926693,4263.9,4263.1,0.4469]
[1755864449491,12.04698865,4263.9,4263.1,0.4469]
[1755864449689,12.04698865,4263.9,4263.8,0.328]
[1755864449690,2.51771789,4263.9,4263.8,0.328]
[1755864449926,5.987,4263.9,4263.8,0.328]
[1755864450111,9.41911532,4263.9,4263.8,0.328]
[1755864450291,9.91651037,4263.9,4263.8,0.02]
[1755864450492,10.28360435,4263.9,4263.8,0.02]
[1755864450698,13.66423555,4263.9,4263.8,0.02]
[1755864450948,9.47423555,4263.9,4263.8,0.02]
[1755864451146,13.66423555,4263.9,4263.8,0.02]
[1755864451955,11.31896479,4263.9,4263.8,0.02]
[1755864452155,10.28760435,4263.9,4263.8,0.02]
[1755864452307,10.07170029,4263.9,4263.8,0.02]
[1755864452506,12.63274466,4263.9,4263.8,0.02]
[1755864452804,10.2874739,4263.9,4263.8,0.02]
[1755864453033,2.38699368,4263.9,4263.8,0.02]
[1755864453254,6.35709398,4263.9,4263.8,0.7749]
[1755864453603,0.36709398,4263.9,4263.8,3.43225925]
[1755864454227,4.187,4264.3,4263.8,1.08693349]
[1755864454548,2.62001362,4264.3,4263.9,0.4469]
[1755864454839,2.62001362,4264.3,4263.8,0.02]
[1755864455411,3.66532518,4264.2,4263.8,0.02]
[1755864455656,0.92832991,4264.1,4263.8,0.02]
[1755864455942,2.34527076,4263.9,4263.8,0.02]
[1755864456110,2.99174614,4263.9,4263.8,0.02]
[1755864456308,1.804,4263.9,4263.8,0.328]
[1755864456541,1.804,4263.9,4263.8,0.02]
[1755864456542,8.99,4263.9,4263.8,0.02]
[1755864456833,7.14927076,4263.9,4263.8,0.02]
[1755864457036,8.99,4263.9,4263.8,0.02]
[1755864457429,5.989,4263.9,4263.8,0.7749]
[1755864457631,1.804,4263.9,4263.8,0.7749]
[1755864457827,5.99,4263.9,4263.8,0.7749]
[1755864458064,2.79156627,4265.0,4263.8,0.3127]
[1755864458065,4.187,4264.0,4263.8,0.3127]
[1755864458228,1.804,4264.5,4263.8,0.02]
[1755864458430,4.186,4264.4,4263.8,0.02]
[1755864458657,3.0,4264.3,4263.8,0.02]
[1755864458860,0.215575,4264.2,4263.8,0.02]
[1755864459029,2.65257076,4263.9,4263.8,0.02]
[1755864459428,3.11297076,4263.9,4263.8,0.02]
[1755864459660,7.30097076,4263.9,4263.8,0.02]
[1755864459829,2.34527076,4263.9,4263.8,0.02]
[1755864460031,4.186,4263.9,4263.8,0.02]
[1755864460254,4.88773428,4263.9,4263.8,0.02]
[1755864460630,4.88673428,4263.9,4263.8,0.02]
[1755864460831,7.88673428,4263.9,4263.8,0.02]
[1755864461028,10.23200504,4263.9,4263.8,0.02]
[1755864461234,10.53930504,4263.9,4263.8,0.02]
[1755864461431,41.8750946,4263.9,4263.8,0.02]
[1755864461630,42.71592866,4263.9,4263.8,0.02]
[1755864462181,2.34571086,4263.1,4263.0,0.007855]
[1755864462331,12.17558195,4263.1,4263.0,0.007855]
[1755864462539,12.63598195,4263.1,4263.0,0.007855]
[1755864462845,8.81917603,4263.1,4263.0,0.007855]
[1755864463046,11.69990494,4263.1,4263.0,0.007855]
[1755864463343,12.46760494,4263.1,4263.0,0.007855]
[1755864463650,11.69890494,4263.1,4263.0,0.007855]
[1755864463829,7.51690494,4263.1,4263.0,0.007855]
[1755864464032,11.69890494,4263.1,4263.0,0.007855]
[1755864464233,7.51690494,4263.1,4263.0,0.007855]
[1755864464552,11.69790494,4263.1,4263.0,0.007855]
[1755864464761,13.10225559,4263.1,4263.0,0.007855]
[1755864465076,13.86995559,4263.1,4263.0,0.007855]
[1755864465237,9.90408124,4263.1,4263.0,0.007855]
[1755864465437,14.08408124,4263.1,4263.0,0.007855]
[1755864466178,44.17617624,4263.1,4263.0,0.007855]
[1755864466875,44.83617624,4263.1,4263.0,0.007855]
[1755864467243,45.54699006,4263.1,4263.0,0.007855]
[1755864467839,41.36899006,4263.1,4263.0,0.007855]
[1755864468054,45.54399006,4263.1,4263.0,0.007855]
[1755864468257,36.00576589,4263.0,4262.9,0.004]
[1755864468470,40.1905914,4263.0,4262.9,0.004]
[1755864468769,44.23845189,4263.0,4262.9,0.004]
[1755864469066,44.23845189,4263.0,4262.8,0.02]
[1755864469067,6.00582092,4262.9,4262.8,1e-08]
[1755864469284,53.42975698,4262.9,4262.8,1e-08]
[1755864469470,46.17153976,4262.9,4262.8,1e-08]
[1755864469670,41.33553976,4262.9,4262.8,1e-08]
[1755864469879,14.12013087,4262.9,4262.8,1e-08]
[1755864470167,7.38222479,4262.9,4262.8,1e-08]
[1755864470369,11.32782092,4262.9,4262.8,1e-08]
[1755864470576,11.32682092,4262.9,4262.8,1e-08]
[1755864470874,8.981,4262.9,4262.8,1e-08]
[1755864471096,1.8042,4262.9,4262.8,0.73010001]
[1755864471379,5.9792,4262.9,4262.8,0.73010001]
[1755864471581,5.9992,4262.9,4262.8,0.29270001]
[1755864471786,9.6085295,4262.9,4262.8,1e-08]
[1755864471977,12.26165042,4262.9,4262.8,1e-08]
[1755864472178,13.16530338,4262.9,4262.8,1e-08]
[1755864472355,43.76226273,4262.9,4262.8,1e-08]
[1755864472558,44.19249169,4262.9,4262.8,1e-08]
[1755864472750,13.07209169,4262.9,4262.8,1e-08]
[1755864472951,12.85697721,4262.9,4262.8,1e-08]
[1755864473154,12.76408785,4262.9,4262.8,1e-08]
[1755864473355,13.04494939,4262.9,4262.8,1e-08]
[1755864473556,13.56765982,4262.9,4262.8,1e-08]
[1755864473762,14.02805982,4262.9,4262.8,1e-08]
[1755864474082,7.51723323,4262.9,4262.8,1e-08]
[1755864474255,7.73284101,4262.9,4262.8,1e-08]
[1755864474586,7.51723323,4262.9,4262.8,0.29270001]
[1755864474885,11.72523323,4262.9,4262.8,1e-08]
[1755864475184,9.37741231,4262.9,4262.8,1e-08]
[1755864475388,5.17141231,4262.9,4262.8,0.29270001]
[1755864475753,9.37541231,4262.9,4262.8,0.73010001]
[1755864475954,6.37541231,4262.9,4262.8,0.73010001]
[1755864476154,6.0082,4262.9,4262.8,0.73010001]
[1755864476355,1.8042,4262.9,4262.8,0.73010001]
[1755864476597,6.0072,4262.9,4262.8,0.73010001]
[1755864476895,1.8042,4262.9,4262.8,0.73010001]
[1755864477366,8.35102092,4262.9,4262.8,0.73010001]
[1755864477570,6.0052,4262.9,4262.8,0.73010001]
[1755864477772,12.26825042,4262.9,4262.8,1e-08]
[1755864478103,12.88940937,4262.9,4262.8,1e-08]
[1755864478257,9.58670044,4262.9,4262.8,1e-08]
[1755864478452,13.02700044,4262.9,4262.8,1e-08]
[1755864478690,8.81900044,4262.9,4262.8,1e-08]
[1755864478895,13.02700044,4262.9,4262.8,1e-08]
[1755864479096,13.33430044,4262.9,4262.8,1e-08]
[1755864479458,13.02500044,4262.9,4262.8,1e-08]
[1755864479670,12.89540937,4262.9,4262.8,1e-08]
[1755864479870,13.33230182,4262.9,4262.8,1e-08]
[1755864480096,40.6139057,4262.9,4262.8,1e-08]
[1755864480299,56.24526255,4262.9,4262.8,1e-08]
[1755864480602,55.81430008,4262.9,4262.8,1e-08]
[1755864480762,57.48965753,4262.9,4262.8,1e-08]
[1755864481162,57.48963024,4262.9,4262.8,1e-08]
[1755864481717,57.48961373,4262.9,4262.8,1e-08]
[1755864481988,0.66,4262.0,4260.8,0.02]
[1755864482165,2.34692201,4260.9,4260.8,0.02]
[1755864482368,41.79067051,4260.9,4260.8,0.02]
[1755864482687,43.42295002,4260.9,4260.8,0.02]
[1755864482886,43.42266856,4260.9,4260.8,0.02]
[1755864483086,43.55201454,4260.9,4260.8,0.02]
[1755864483393,43.55201454,4260.9,4258.9,0.4374]
[1755864483394,2.9992,4260.8,4258.9,0.4374]
[1755864483594,2.34708726,4260.6,4258.9,0.4374]
[1755864483796,5.73540874,4260.7,4258.9,0.4374]
[1755864483797,2.34766042,4259.6,4258.9,0.4374]
[1755864483996,4.219,4259.5,4258.9,0.4374]
[1755864484307,1.805,4259.8,4259.4,0.2927]
[1755864484491,0.36744177,4260.2,4259.5,0.4374]
[1755864484693,0.36744177,4260.2,4260.1,0.2927]
[1755864484990,2.34736273,4260.1,4258.9,0.4374]
[1755864485166,2.34760266,4259.7,4258.9,0.4374]
[1755864485367,4.222,4259.6,4258.9,0.4374]
[1755864485568,4.221,4259.5,4258.9,0.4374]
[1755864485767,4.58845032,4259.5,4258.9,0.4374]
[1755864486183,0.3073,4259.0,4258.8,0.023]
[1755864486383,33.4604,4259.4,4258.8,0.023]
[1755864486384,6.027,4258.9,4258.8,0.023]
[1755864486688,8.38402413,4258.9,4258.8,0.023]
[1755864486891,9.15172413,4258.9,4258.8,0.023]
[1755864487078,11.38502413,4258.9,4258.8,0.023]
[1755864487395,9.51616376,4258.9,4258.8,0.023]
[1755864487611,9.045,4258.9,4258.8,0.3157]
[1755864487994,5.34769339,4259.5,4258.8,0.7531]
[1755864488202,0.45854418,4260.2,4258.9,0.47418024]
[1755864488388,4.242,4260.1,4258.9,0.4507]
[1755864488768,2.34790727,4259.2,4258.8,0.023]
[1755864488967,4.243,4259.1,4258.9,2.34801911]
[1755864489191,1.806,4259.5,4259.1,0.2873]
[1755864489392,4.244,4259.4,4259.2,0.4507]
[1755864489591,4.244,4259.4,4259.3,0.2873]
[1755864489900,4.243,4259.9,4259.3,0.738]
[1755864490288,0.36743193,4259.4,4259.3,0.738]
[1755864491206,0.36743193,4259.4,4259.3,3.08580362]
[1755864491904,0.36743193,4259.4,4258.8,0.023]
[1755864492069,2.34784895,4259.3,4258.8,0.023]
[1755864492274,6.59786854,4259.2,4258.8,0.023]
[1755864492475,4.25,4259.2,4258.8,0.023]
[1755864492727,2.65412413,4258.9,4258.8,0.023]
[1755864493011,6.87128654,4258.9,4258.8,0.023]
[1755864493312,11.12128654,4258.9,4258.8,0.023]
[1755864493514,11.48882704,4258.9,4258.8,0.023]
[1755864493673,11.95032704,4258.9,4258.8,0.023]
[1755864493871,7.6155405,4258.9,4258.8,0.023]
[1755864494266,7.6145405,4258.9,4258.8,0.023]
[1755864494682,41.39016463,4258.9,4258.8,1e-08]
[1755864494882,53.74020375,4258.9,4258.8,1e-08]
[1755864495214,53.74020375,4258.9,4255.7,0.18023964]
[1755864495215,0.66,4258.7,4255.7,0.18023964]
[1755864495533,5.34967926,4255.9,4255.7,0.18023964]
[1755864495743,11.42167926,4255.9,4255.7,0.18023964]
[1755864495894,7.78005058,4255.9,4254.8,0.02]
[1755864496098,43.21698046,4255.9,4254.8,0.02]
[1755864496345,43.38282463,4255.9,4254.8,0.02]
[1755864496641,3.0,4255.9,4254.8,0.02]
[1755864496941,1.806,4256.5,4255.0,0.4507]
[1755864496942,3.0,4256.4,4255.0,0.4507]
[1755864497105,3.0,4256.4,4254.8,0.04350286]
[1755864497106,3.0,4256.3,4255.1,0.02350121]
[1755864497308,4.276,4257.1,4255.8,0.4707]
[1755864497494,4.276,4257.1,4255.9,0.4507]
[1755864497701,4.276,4257.1,4255.9,2.80035182]
[1755864497910,1.806,4257.7,4255.9,0.28203518]
[1755864498139,1.806,4257.7,4256.0,0.47419624]
[1755864498337,2.312,4257.9,4256.1,1.807]
[1755864498644,2.34770387,4259.5,4258.1,2.34845259]
[1755864498844,2.34770387,4259.5,4256.5,2.34934805]
[1755864498845,0.706322,4259.0,4258.7,2.34812474]
[1755864498996,0.706322,4259.0,4258.2,0.4741841]
[1755864498997,0.706322,4259.0,4258.4,1.807]
[1755864499198,0.02,4258.8,4258.5,0.02348244]
[1755864499398,0.02,4258.8,4258.7,2.3481344]
[1755864499699,0.02,4258.8,4258.7,0.4507]
[1755864499895,0.02,4258.8,4258.5,0.46294678]
[1755864499896,0.02,4258.8,4258.1,2.34845823]
[1755864500109,0.02,4258.8,4257.8,2.2577]
[1755864500314,0.02,4258.8,4257.9,0.4507]
[1755864500532,0.02,4258.8,4258.0,0.22577]
[1755864500739,0.02,4258.8,4257.9,0.4507]
[1755864500909,0.02,4258.8,4258.1,2.34845622]
[1755864501105,0.36751091,4258.7,4257.9,0.4507]
[1755864501298,0.36751091,4258.7,4257.9,2.34857558]
[1755864501502,0.36751091,4258.7,4257.3,2.79960345]
[1755864501699,3.66,4258.5,4255.8,0.02]
[1755864502013,2.34941387,4256.4,4255.8,0.02]
[1755864502199,4.3,4256.4,4255.8,0.02]
[1755864502538,3.00956885,4256.1,4255.8,0.02]
[1755864502697,6.00967926,4255.9,4255.8,0.02]
[1755864502897,38.03050054,4255.9,4255.8,0.02]
[1755864503162,45.15914017,4255.9,4255.8,0.02]
[1755864503819,45.52701101,4255.9,4255.8,0.02]
[1755864504000,41.22201101,4255.9,4255.8,0.02]
[1755864504201,41.22201101,4255.9,4255.8,1e-08]
[1755864504507,3.01023149,4254.9,4252.8,0.02]
[1755864504707,43.16909022,4254.9,4252.9,2.35133588]
[1755864504933,39.32859022,4254.9,4252.9,2.35133289]
[1755864505137,43.63559022,4254.9,4252.9,2.35133289]
[1755864505436,43.63559022,4254.9,4252.8,0.02]
[1755864505437,44.00253872,4254.9,4252.8,0.02]
[1755864505935,45.68631066,4254.9,4252.8,0.02]
[1755864506137,49.62236216,4254.9,4252.8,0.02]
[1755864506356,49.28059022,4254.9,4254.8,1e-08]
[1755864506643,3.66,4254.8,4252.8,0.02]
[1755864506797,2.35069595,4254.1,4252.8,0.02]
[1755864507002,6.01078398,4253.9,4252.8,0.02]
[1755864507347,46.83085887,4253.9,4252.8,0.02]
[1755864507502,33.21307489,4253.9,4252.8,0.02]
[1755864507850,33.21307489,4253.9,4253.8,1e-08]
[1755864507851,33.21216976,4253.9,4253.8,1e-08]
[1755864508001,42.23809337,4253.9,4253.8,1e-08]
[1755864508207,7.55016976,4253.9,4253.8,1e-08]
[1755864508708,3.01177912,4252.1,4251.8,0.02]
[1755864509029,3.01188974,4251.9,4251.8,0.02]
[1755864509340,37.61178363,4251.9,4251.8,0.02]
[1755864509541,2.35233233,4251.1,4250.8,0.02]
[1755864509837,42.42022622,4251.1,4250.8,0.02]
[1755864510037,38.49472622,4251.1,4250.8,0.02]
[1755864510340,41.06944154,4251.1,4250.8,0.02]
[1755864510639,26.07044154,4251.1,4250.8,0.02]
[1755864510843,21.68344154,4251.1,4251.0,1e-08]
[1755864511010,56.06844154,4251.1,4251.0,1e-08]
[1755864511211,52.05172526,4251.1,4251.0,1e-08]
[1755864511407,63.47708211,4251.1,4251.0,1e-08]
[1755864511740,42.58500994,4251.1,4251.0,1e-08]
[1755864511964,5.85067761,4251.1,4251.0,1e-08]
[1755864512144,0.36828372,4251.1,4251.0,1e-08]
[1755864512308,37.10261605,4251.1,4251.0,1e-08]
[1755864512508,2.72061605,4251.1,4251.0,1e-08]
[1755864512760,2.72061605,4251.1,4250.8,0.02]
[1755864512761,30.0,4251.0,4250.8,1e-08]
[1755864512909,6.22392739,4250.9,4250.8,1e-08]
[1755864513114,41.07142739,4250.9,4250.8,1e-08]
[1755864513331,36.68542739,4250.9,4250.8,1e-08]
[1755864513550,35.56392739,4250.9,4250.8,1e-08]
[1755864513864,54.05831875,4250.9,4250.8,1e-08]
[1755864514487,49.66131875,4250.9,4250.8,1e-08]
[1755864514619,54.06131875,4250.9,4250.8,1e-08]
[1755864514947,3.01288581,4250.1,4250.0,2.53125]
[1755864515260,3.01299654,4249.9,4248.8,0.02]
[1755864515426,35.37513617,4249.9,4248.8,0.02]
[1755864515608,39.11313617,4249.9,4248.8,0.02]
[1755864515809,34.71513617,4249.9,4248.8,0.02]
[1755864516021,39.75299654,4249.9,4248.9,0.4507]
[1755864516231,51.7032451,4249.9,4249.8,1e-08]
[1755864516444,41.08502137,4249.9,4249.8,1e-08]
[1755864516950,41.11902137,4249.9,4249.8,1e-08]
[1755864517644,40.90649654,4249.9,4249.8,1e-08]
[1755864517829,43.26863617,4249.9,4249.8,1e-08]
[1755864518145,43.26563617,4249.9,4249.8,1e-08]
[1755864518358,49.45363617,4249.9,4249.8,1e-08]
[1755864518556,53.88263617,4249.9,4249.8,1e-08]
[1755864518858,38.83663617,4249.9,4249.8,1e-08]
[1755864519158,32.35299654,4249.9,4249.8,1e-08]
[1755864519536,4.425,4249.9,4249.8,1e-08]
[1755864519926,0.09439,4250.0,4249.8,1e-08]
[1755864520148,0.3683149,4249.9,4249.8,0.46100001]
[1755864520462,0.3683149,4249.9,4249.8,2.81405191]
[1755864520634,0.3683149,4249.9,4249.8,0.97772116]
[1755864520837,0.3683149,4249.9,4249.8,2.81405191]
[1755864521571,1.8092,4251.1,4249.8,0.46100001]
[1755864521727,1.8092,4251.1,4249.9,0.02352996]
[1755864521728,0.36819782,4250.9,4249.9,0.02352996]
[1755864521931,0.36819782,4250.9,4250.0,0.461]
[1755864523036,0.36819782,4250.9,4250.1,2.35285098]
[1755864523367,0.36819782,4250.9,4250.2,0.7423851]
[1755864523664,0.36819782,4250.9,4250.3,0.461]
[1755864524238,0.36819782,4250.9,4249.8,1e-08]
[1755864524426,2.35266656,4250.5,4249.8,1e-08]
[1755864524633,3.0,4250.3,4249.8,1e-08]
[1755864524854,3.0,4250.1,4249.8,1e-08]
[1755864525065,3.0,4249.9,4249.8,1e-08]
[1755864525261,5.35299654,4249.9,4249.8,1e-08]
[1755864525639,0.36834151,4250.2,4249.8,1e-08]
[1755864525849,4.421,4250.7,4249.8,0.46100001]
[1755864526056,2.35262475,4250.6,4249.8,0.46100001]
[1755864526366,6.77565729,4250.6,4249.8,0.46100001]
[1755864526564,4.423,4250.6,4249.8,0.46100001]
[1755864526764,1.81,4251.1,4250.0,2.35289239]
[1755864526938,4.421,4251.0,4249.8,2.8375718]
[1755864527142,4.34333622,4251.1,4249.8,2.8375791]
[1755864527344,4.42,4251.0,4249.8,0.46100001]
[1755864527527,1.991,4251.1,4250.2,2.3528101]
[1755864527734,1.991,4251.1,4250.2,0.461]
[1755864528045,1.81,4251.1,4250.2,0.461]
[1755864528352,2.35172507,4252.2,4250.2,0.461]
[1755864528353,4.417,4251.5,4250.2,0.461]
[1755864528558,2.3520516,4251.7,4250.2,2.81382084]
[1755864528756,1.83,4251.8,4250.3,0.02352775]
[1755864528963,1.83,4251.8,4250.2,2.81377686]
[1755864528964,4.414,4251.7,4250.2,2.81377686]
[1755864529266,4.414,4251.7,4250.3,2.63410313]
[1755864529486,0.36818644,4251.4,4250.3,2.63410313]
[1755864529855,0.36818644,4251.4,4250.3,0.28137769]
[1755864530179,2.35222167,4251.3,4250.3,0.28137769]
[1755864530383,2.3522959,4251.2,4250.2,0.461]
[1755864530670,0.36818644,4251.4,4249.8,0.00400001]
[1755864530671,2.35267071,4250.5,4249.8,0.00400001]
[1755864530835,4.408,4250.7,4249.8,0.00400001]
[1755864531031,0.21321923,4250.6,4249.8,0.00400001]
[1755864531236,2.35299654,4249.9,4249.8,0.00400001]
[1755864531436,6.01464485,4249.9,4249.8,0.00400001]
[1755864531691,5.80145763,4249.9,4249.8,0.00400001]
[1755864531990,5.56615798,4249.9,4249.8,0.00400001]
[1755864532333,5.77953792,4249.9,4249.8,0.00400001]
[1755864532539,5.77953792,4249.9,4248.1,0.00197923]
[1755864532540,33.0,4249.8,4248.1,0.00197923]
[1755864532789,2.35355033,4248.9,4248.1,0.00197923]
[1755864532993,6.98071177,4248.9,4248.1,0.00197923]
[1755864533194,14.5175765,4248.2,4248.1,0.00197923]
[1755864533435,19.38843766,4248.2,4248.1,0.00197923]
[1755864533612,23.84343766,4248.2,4248.1,0.00197923]
[1755864533930,24.27933766,4248.2,4248.1,0.00197923]
[1755864534083,24.43466334,4248.2,4248.1,0.00197923]
[1755864534286,11.03872816,4248.2,4248.1,0.00197923]
[1755864534498,8.24068853,4248.2,4248.1,0.00197923]
[1755864534811,42.82436595,4248.2,4248.1,0.00197923]
[1755864535129,42.69778398,4248.2,4248.1,0.00197923]
[1755864535283,38.24078398,4248.2,4248.1,0.00197923]
[1755864535483,12.69678398,4248.2,4248.1,0.00197923]
[1755864535935,2.02432986,4248.2,4248.1,0.00197923]
[1755864536086,0.21432986,4248.2,4248.1,0.00197923]
[1755864537291,4.66832986,4248.2,4248.1,0.00197923]
[1755864537603,0.21432986,4248.2,4248.1,0.00197923]
[1755864538109,4.66932986,4248.2,4248.1,0.00197923]
[1755864538287,0.21432986,4248.2,4248.1,0.00197923]
[1755864539013,40.45716799,4248.2,4248.1,0.00197923]
[1755864539327,40.66136493,4248.2,4248.1,0.00197923]
[1755864539486,10.66136493,4248.2,4248.1,0.00197923]
[1755864539997,2.93722332,4248.2,4248.1,0.00197923]
[1755864540388,0.58328519,4248.2,4248.1,0.00197923]
[1755864540588,0.36848575,4248.2,4248.1,0.00197923]
[1755864540910,0.36848575,4248.2,4248.1,0.46297923]
[1755864541286,0.36848575,4248.2,4248.1,0.00197923]
[1755864542097,2.93722332,4248.2,4248.1,0.00197923]
[1755864542422,7.67241221,4248.2,4248.1,0.00197923]
[1755864542628,5.04624523,4248.2,4248.1,0.00197923]
[1755864542921,7.40216194,4248.2,4248.1,0.00197923]
[1755864543492,2.93716194,4248.2,4248.1,0.00197923]
[1755864543722,3.37306194,4248.2,4248.1,0.00197923]
[1755864543886,3.99658533,4248.2,4248.1,0.00197923]
[1755864544091,2.35410438,4247.9,4247.8,1e-08]
[1755864544290,0.21473806,4247.9,4247.8,1e-08]
[1755864544538,4.67973806,4248.1,4247.8,1e-08]
[1755864544693,2.35410438,4247.9,4247.8,1e-08]
[1755864545103,12.69123468,4247.9,4247.8,1e-08]
[1755864545313,45.05337431,4247.9,4247.8,1e-08]
[1755864545810,41.24637431,4247.9,4247.8,1e-08]
[1755864545994,0.66,4247.7,4246.8,1e-08]
[1755864546200,17.77001807,4246.9,4246.8,1e-08]
[1755864546516,44.18958968,4246.9,4245.0,1.461]
[1755864546692,3.0,4246.5,4245.0,1.0]
[1755864546896,0.66,4246.2,4245.0,1.0]
[1755864547092,3.01521326,4245.9,4245.0,1.0]
[1755864547330,33.14364582,4245.9,4245.0,1.0]
[1755864547506,37.07246906,4245.9,4245.0,1.0]
[1755864547707,2.35565711,4245.1,4245.0,1.0]
[1755864547906,0.4359,4246.4,4245.0,1.0]
[1755864548110,34.486,4246.0,4245.0,1.0]
[1755864548331,4.488,4245.9,4245.0,1.0]
[1755864548642,4.492,4245.8,4245.0,1.0]
[1755864548831,12.19765938,4247.0,4245.0,1.14626]
[1755864549008,4.491,4246.0,4245.1,0.4426]
[1755864549209,4.16614883,4246.1,4245.1,0.4426]
[1755864549210,1.811,4246.1,4245.2,0.02355601]
[1755864549424,0.36862619,4245.8,4245.2,0.02355601]
[1755864549607,0.36862619,4245.8,4245.1,2.79820229]
[1755864549938,0.36862619,4245.8,4245.3,2.35554613]
[1755864550159,0.36862619,4245.8,4245.7,2.35532421]
[1755864550367,0.36862619,4245.8,4245.7,2.79792421]
[1755864550510,1.811,4248.2,4247.8,0.02]
[1755864550952,0.094418,4248.3,4247.8,0.02]
[1755864551135,0.02,4248.8,4247.8,0.02]
[1755864551334,0.708042,4248.7,4247.8,0.02]
[1755864551536,0.02,4248.8,4247.8,0.02]
[1755864551756,4.507,4248.8,4247.8,0.02]
[1755864551925,4.485,4248.7,4247.8,0.02]
[1755864552250,6.83866111,4248.7,4247.8,0.02]
[1755864552409,5.58731999,4248.7,4247.8,0.02]
[1755864552614,2.35388272,4248.3,4247.8,0.02]
[1755864552811,3.36844224,4248.5,4247.8,0.02]
[1755864552812,30.0,4248.2,4247.8,0.02]
[1755864553044,0.36844224,4248.5,4247.8,0.02]
[1755864553342,0.36844224,4248.5,4248.4,2.35382732]
[1755864553544,0.36844224,4248.5,4248.4,0.82789378]
[1755864553842,0.36844224,4248.5,4248.4,0.4426]
[1755864554064,0.36844224,4248.5,4247.8,1.831]
[1755864554351,4.493,4248.4,4247.8,0.02]
[1755864554570,2.35410438,4247.9,4247.8,0.02]
[1755864554713,3.01410438,4247.9,4247.8,0.02]
[1755864554916,38.81854401,4247.9,4247.8,0.02]
[1755864555166,43.27581467,4247.9,4247.8,0.02]